[Event "49th Rilton Cup 2019-20"]
[Site "Stockholm"]
[Date "2020.01.04"]
[Round "8.22"]
[White "Balokas, Dimitrios"]
[Black "Spyropoulos, Nikolaos"]
[Result "0-1"]
[ECO "A04"]
[WhiteElo "2209"]
[BlackElo "2401"]
[Annotator "NA"]
[PlyCount "68"]
[EventDate "2019.12.27"]
[EventType "swiss"]
[EventCountry "SWE"]
[SourceTitle "playchess.com"]
[Source "ChessBase"]
[SourceQuality "1"]
[TimeControl "40/5400+30:1800+30"]

1. Nf3 {[%emt 0:09:41]} e6 {[%emt 0:00:00]} 2. c4 {[%emt 0:00:10]} f5 {[%emt 0:00:18]} 3. d4 {[%emt 0:00:09]} Nf6 {[%emt 0:00:30]} 4. g3 {[%emt 0:00:07]} c6 {[%emt 0:04:31]} 5. Bg2 {[%emt 0:00:13]} d5 {[%emt 0:00:05]} 6. O-O {[%emt 0:00:14]} Bd6 {[%emt 0:00:49]} 7. Nc3 {[%emt 0:00:09]} O-O {[%emt 0:05:59]} 8. Rb1 {[%emt 0:00:09]} Qe7 {[%emt 0:13:12]} 9. Bg5 {[%emt 0:00:02]} Nbd7 {[%emt 0:01:53]} 10. e3 {[%emt 0:00:02]} b6 {[%emt 0:14:29]} 11. cxd5 {[%emt 0:07:35]} exd5 $14 {[%emt 0:17:53]} 12. Qc2 {[%emt 0:16:46]} g6 {[%emt 0:04:08]} 13. Ne2 {[%emt 0:09:18]} Bb7 {[%emt 0:01:38]} 14. Bf4 {[%emt 0:02:04]} Ne4 {[%emt 0:03:40]} 15. Bxd6 {[%emt 0:01:05]} Qxd6 {[%emt 0:00:06]} 16. Nf4 {[%emt 0:00:16]} Rac8 {[%emt 0:00:42]} 17. b4 {[%emt 0:00:17]} Ba6 {[%emt 0:04:49]} 18. Rfc1 {[%emt 0:01:48]} Bc4 {[%emt 0:06:20]} 19. Nd3 {[%emt 0:01:54]} b5 {[%emt 0:07:16]} 20. Nfe5 {[%emt 0:00:39]} Bxd3 {[%emt 0:04:04]} 21. Nxd3 {[%emt 0:00:25]} Nb6 {[%emt 0:00:22]} 22. Ne5 {[%emt 0:00:42]} Nc4 {[%emt 0:00:07]} 23. Nxc4 {[%emt 0:00:47]} bxc4 {[%emt 0:00:03]} 24. Qa4 {[%emt 0:08:54]} Rb8 {[%emt 0:00:59]} 25. f3 {[%emt 0:11:48]} Nf6 {[%emt 0:00:05]} 26. Qxa7 {[%emt 0:02:15]} Ra8 {[%emt 0:05:05]} 27. Qc5 {[%emt 0:01:18]} Qe6 {[%emt 0:00:03]} 28. b5 {[%emt 0:00:47]} cxb5 {[%emt 0:00:20]} 29. e4 {[%emt 0:01:09]} fxe4 {[%emt 0:01:10]} 30. Re1 {[%emt 0:02:10]} Nd7 {[%emt 0:02:10]} 31. Qxb5 {[%emt 0:00:51]} Rxa2 {[%emt 0:02:09]} 32. fxe4 {[%emt 0:02:16]} Rff2 {[%emt 0:00:17]} 33. Bh1 {[%emt 0:01:02]} Qh3 {[%emt 0:00:44]} 34. Qxd5+ {[%emt 0:00:06]} Kg7 {[%emt 0:00:11]} 0-1

[Event "49th Rilton Cup 2019-20"]
[Site "Stockholm"]
[Date "2020.01.04"]
[Round "8.23"]
[White "Koykka, Pekka"]
[Black "Quesada Vera, Liordis"]
[Result "1-0"]
[ECO "A59"]
[WhiteElo "2372"]
[BlackElo "2391"]
[Annotator "NA"]
[PlyCount "67"]
[EventDate "2019.12.27"]
[EventType "swiss"]
[EventCountry "SWE"]
[SourceTitle "playchess.com"]
[Source "ChessBase"]
[SourceQuality "1"]
[TimeControl "40/5400+30:1800+30"]

1. d4 {[%emt 0:00:00]} Nf6 {[%emt 0:07:07]} 2. c4 {[%emt 0:00:31]} c5 {[%emt 0:01:06]} 3. d5 {[%emt 0:00:30]} b5 {[%emt 0:02:27]} 4. cxb5 {[%emt 0:00:30]} a6 {[%emt 0:00:30]} 5. bxa6 {[%emt 0:01:07]} g6 {[%emt 0:00:30]} 6. Nc3 {[%emt 0:00:36]} Bxa6 {[%emt 0:00:30]} 7. e4 {[%emt 0:00:43]} Bxf1 {[%emt 0:00:30]} 8. Kxf1 {[%emt 0:00:30]} d6 {[%emt 0:00:30]} 9. Nf3 {[%emt 0:01:42]} Bg7 {[%emt 0:00:30]} 10. g3 {[%emt 0:00:30]} O-O {[%emt 0:00:30]} 11. Kg2 {[%emt 0:00:30]} Nbd7 {[%emt 0:00:37]} 12. a4 {[%emt 0:00:30]} Ra6 {[%emt 0:09:16]} 13. Qc2 {[%emt 0:07:40]} Qa8 {[%emt 0:01:41]} 14. Nb5 {[%emt 0:12:36]} Qb7 {[%emt 0:10:08]} 15. Bd2 {[%emt 0:11:11]} e6 $11 {[%emt 0:07:33]} 16. dxe6 {[%emt 0:03:52]} fxe6 {[%emt 0:00:30]} 17. Rhe1 {[%emt 0:00:34]} d5 {[%emt 0:18:52]} 18. exd5 {[%emt 0:00:30]} exd5 {[%emt 0:00:30]} 19. Bf4 {[%emt 0:02:40]} Ne4 {[%emt 0:16:03]} 20. Nc7 {[%emt 0:37:01]} g5 {[%emt 0:14:19]} 21. Nxa6 {[%emt 0:10:16]} gxf4 {[%emt 0:00:30]} 22. Rad1 {[%emt 0:03:40]} fxg3 {[%emt 0:02:43]} 23. hxg3 {[%emt 0:00:30]} Bd4 {[%emt 0:02:55]} 24. Nc7 {[%emt 0:01:06]} Ne5 {[%emt 0:00:48]} 25. Rxd4 {[%emt 0:02:29]} Nxf3 {[%emt 0:00:35]} 26. Rexe4 {[%emt 0:00:35]} dxe4 {[%emt 0:00:46]} 27. Qc4+ {[%emt 0:00:30]} Kh8 {[%emt 0:00:46]} 28. Qxc5 {[%emt 0:00:30]} Rc8 {[%emt 0:00:33]} 29. Rd7 {[%emt 0:00:30]} e3 {[%emt 0:00:30]} 30. Qc3+ {[%emt 0:00:30]} Ne5+ {[%emt 0:00:33]} 31. Kh2 {[%emt 0:00:32]} Qe4 {[%emt 0:00:30]} 32. Re7 {[%emt 0:00:30]} Rxc7 {[%emt 0:00:30]} 33. Re8+ {[%emt 0:00:30]} Kg7 {[%emt 0:00:30]} 34. Qxc7+ {[%emt 0:00:30]} 1-0

[Event "49th Rilton Cup 2019-20"]
[Site "Stockholm"]
[Date "2020.01.04"]
[Round "8.24"]
[White "Schoppen, Casper"]
[Black "Ajay Krishna, S."]
[Result "0-1"]
[ECO "B92"]
[WhiteElo "2507"]
[BlackElo "2302"]
[Annotator "ChessBase"]
[PlyCount "110"]
[EventDate "2019.12.27"]
[EventType "swiss"]
[EventCountry "SWE"]
[SourceTitle "playchess.com"]
[Source "ChessBase"]
[SourceQuality "1"]
[TimeControl "40/5400+30:1800+30"]

1. e4 {[%emt 0:05:00]} c5 {[%emt 0:00:00]} 2. Nf3 {[%emt 0:00:07]} d6 {[%emt 0:00:00]} 3. d4 {[%emt 0:00:28]} cxd4 {[%emt 0:00:00]} 4. Nxd4 {[%emt 0:00:05]} Nf6 {[%emt 0:00:04]} 5. Nc3 {[%emt 0:00:11]} a6 {[%emt 0:00:11]} 6. Be2 {[%emt 0:01:47]} e5 {[%emt 0:00:51]} 7. Nf3 {[%emt 0:00:28]} Be7 {[%emt 0:01:18]} 8. Bg5 {[%emt 0:00:24]} Nbd7 {[%emt 0:00:35]} 9. a4 {[%emt 0:03:54]} h6 {[%emt 0:02:47]} 10. Bxf6 {[%emt 0:06:09]} Nxf6 {[%emt 0:00:14]} 11. Bc4 {[%emt 0:01:36]} O-O {[%emt 0:06:33]} 12. O-O {[%emt 0:03:39]} Be6 {[%emt 0:02:06]} 13. Qd3 {[%emt 0:02:32]} Rc8 {[%emt 0:10:26]} 14. Bb3 {[%emt 0:05:05]} Qa5 {[%emt 0:08:36]} 15. Nd2 {[%emt 0:02:56]} Rfd8 {[%emt 0:02:45]} 16. Rfe1 {[%emt 0:25:05]} Rd7 {[%emt 0:13:22]} 17. Nd5 {[%emt 0:13:24]} Bxd5 {[%emt 0:04:57]} 18. exd5 {[%emt 0:00:07]} Bd8 {[%emt 0:02:18]} 19. Nc4 {[%emt 0:07:53]} Qc5 {[%emt 0:00:20]} 20. Ne3 {[%emt 0:02:05]} g6 {[%emt 0:05:01]} 21. c3 {[%emt 0:01:45]} Nh7 {[%emt 0:04:42]} 22. Bc2 {[%emt 0:01:27]} f5 {[%emt 0:07:06]} 23. Qd2 {[%emt 0:06:13]} Rf7 {[%emt 0:01:42]} 24. a5 {[%emt 0:01:16]} Be7 {[%emt 0:09:44]} 25. Ra4 {[%emt 0:00:45]} Rcf8 {[%emt 0:00:22]} 26. b4 {[%emt 0:01:57]} Qc8 {[%emt 0:00:34]} 27. f3 {[%emt 0:04:43]} Bg5 {[%emt 0:01:16]} 28. c4 {[%emt 0:00:27]} e4 {[%emt 0:01:28]} 29. Qf2 {[%emt 0:01:36]} exf3 {[%emt 0:02:02]} 30. gxf3 {[%emt 0:00:06]} Bxe3 {[%emt 0:03:22]} 31. Qxe3 {[%emt 0:00:07]} Qxc4 {[%emt 0:00:54]} 32. Bb3 {[%emt 0:00:05]} Qh4 {[%emt 0:00:40]} 33. b5 {[%emt 0:00:19]} f4 {[%emt 0:01:02]} 34. Qf2 {[%emt 0:00:56]} Ng5 {[%emt 0:01:02]} 35. Qxh4 {[%emt 0:01:10]} Nxf3+ {[%emt 0:00:07]} 36. Kf2 {[%emt 0:00:04]} Nxh4 {[%emt 0:00:07]} 37. b6 {[%emt 0:00:33]} g5 {[%emt 0:05:30]} 38. Re6 {[%emt 0:01:16]} g4 {[%emt 0:00:26]} 39. Bd1 {[%emt 0:00:47]} Rg7 {[%emt 0:00:45]} 40. Rxh6 {[%emt 0:00:46]} g3+ {[%emt 0:00:09]} 41. hxg3 {[%emt 0:12:05]} fxg3+ {[%emt 0:00:00]} 42. Kg1 {[%emt 0:00:12]} g2 {[%emt 0:00:33]} 43. Rh8+ {[%emt 0:02:08]} Kxh8 {[%emt 0:01:09]} 44. Rxh4+ {[%emt 0:00:07]} Rh7 {[%emt 0:01:47]} 45. Rxh7+ {[%emt 0:00:20]} Kxh7 {[%emt 0:00:10]} 46. Kxg2 {[%emt 0:00:12]} Rc8 {[%emt 0:06:38]} 47. Ba4 {[%emt 0:00:05]} Rc5 {[%emt 0:01:02]} 48. Bc6 {[%emt 0:00:16]} Rxa5 {[%emt 0:00:15]} 49. Bxb7 {[%emt 0:00:05]} Ra2+ {[%emt 0:00:44]} 50. Kf3 {[%emt 0:00:04]} a5 {[%emt 0:00:22]} 51. Bc6 {[%emt 0:01:13]} Rb2 {[%emt 0:00:09]} 52. b7 {[%emt 0:00:03]} Kg6 {[%emt 0:00:42]} 53. Ke4 {[%emt 0:00:18]} Kf6 {[%emt 0:00:11]} 54. Kd4 {[%emt 0:00:09]} Rb4+ {[%emt 0:00:37]} 55. Kc3 {[%emt 0:00:06]} Ke7 {[%emt 0:00:16]} 0-1

[Event "49th Rilton Cup 2019-20"]
[Site "Stockholm"]
[Date "2020.01.05"]
[Round "9.3"]
[White "Hillarp Persson, Tiger"]
[Black "Gagare, Shardul"]
[Result "1/2-1/2"]
[ECO "A06"]
[WhiteElo "2537"]
[BlackElo "2468"]
[Annotator "ChessBase"]
[PlyCount "91"]
[EventDate "2019.12.27"]
[EventType "swiss"]
[EventCountry "SWE"]
[SourceTitle "playchess.com"]
[Source "ChessBase"]
[SourceQuality "1"]
[TimeControl "30/5400+30:1800+30"]

1. Nf3 {[%emt 0:00:00]} d5 {[%emt 0:00:06]} 2. g3 {[%emt 0:00:00]} g6 {[%emt 0:00:19]} 3. Bg2 {[%emt 0:03:37]} Bg7 {[%emt 0:00:19]} 4. O-O {[%emt 0:00:35]} e5 {[%emt 0:01:06]} 5. d3 {[%emt 0:00:07]} Ne7 {[%emt 0:00:05]} 6. e4 {[%emt 0:00:51]} O-O {[%emt 0:13:33]} 7. exd5 {[%emt 0:08:10]} Nxd5 {[%emt 0:02:04]} 8. Re1 {[%emt 0:07:28]} Nc6 {[%emt 0:03:23]} 9. Nc3 {[%emt 0:00:26]} Nxc3 {[%emt 0:08:57]} 10. bxc3 {[%emt 0:00:37]} Bg4 {[%emt 0:00:33]} 11. Rb1 {[%emt 0:12:15]} Rb8 {[%emt 0:03:04]} 12. Bd2 {[%emt 0:26:40]} h6 {[%emt 0:16:58]} 13. Qc1 {[%emt 0:05:25]} Qf6 {[%emt 0:05:26]} 14. Re3 {[%emt 0:03:11]} Rfe8 {[%emt 0:04:37]} 15. h3 {[%emt 0:03:14]} Bd7 {[%emt 0:00:06]} 16. h4 {[%emt 0:05:31]} b5 {[%emt 0:02:40]} 17. Re4 {[%emt 0:07:27]} Bf5 {[%emt 0:01:52]} 18. Nh2 {[%emt 0:00:31]} Bxe4 {[%emt 0:00:09]} 19. Bxe4 {[%emt 0:00:07]} h5 {[%emt 0:00:14]} 20. a4 {[%emt 0:00:44]} bxa4 {[%emt 0:03:49]} 21. Ra1 {[%emt 0:00:53]} Rb6 {[%emt 0:06:38]} 22. Rxa4 {[%emt 0:01:32]} Reb8 {[%emt 0:00:53]} 23. Ra1 {[%emt 0:00:24]} a5 {[%emt 0:00:45]} 24. Nf3 {[%emt 0:00:57]} Qd6 {[%emt 0:00:55]} 25. Ng5 {[%emt 0:00:59]} f6 {[%emt 0:00:59]} 26. Nh3 {[%emt 0:00:32]} Ne7 {[%emt 0:01:52]} 27. Kh2 {[%emt 0:00:18]} Ra6 {[%emt 0:09:17]} 28. Ra4 {[%emt 0:00:17]} Qd7 {[%emt 0:10:25]} 29. Qa1 {[%emt 0:00:37]} Kh7 {[%emt 0:00:56]} 30. d4 {[%emt 0:07:24]} exd4 {[%emt 0:01:00]} 31. cxd4 {[%emt 0:30:13]} Bh6 {[%emt 0:31:06]} 32. Bxh6 {[%emt 0:00:41]} Kxh6 {[%emt 0:00:04]} 33. Rxa5 {[%emt 0:00:39]} Rxa5 {[%emt 0:01:21]} 34. Qxa5 {[%emt 0:00:03]} Qxd4 {[%emt 0:00:55]} 35. Qxc7 {[%emt 0:00:15]} Qd8 {[%emt 0:00:05]} 36. Qc3 {[%emt 0:00:22]} Qd6 {[%emt 0:00:16]} 37. Qe3+ {[%emt 0:01:20]} Kg7 {[%emt 0:00:05]} 38. Nf4 {[%emt 0:00:06]} Rb4 {[%emt 0:01:00]} 39. Bd3 {[%emt 0:03:09]} Qe5 {[%emt 0:00:09]} 40. Ne6+ {[%emt 0:01:18]} Kg8 {[%emt 0:01:26]} 41. Qxe5 {[%emt 0:00:31]} fxe5 {[%emt 0:00:06]} 42. Ng5 {[%emt 0:00:00]} Kg7 {[%emt 0:00:00]} 43. Kg2 {[%emt 0:00:00]} Nf5 {[%emt 0:00:00]} 44. Kf3 {[%emt 0:00:00]} Nd6 {[%emt 0:00:00]} 45. Ne4 {[%emt 0:00:00]} Nxe4 {[%emt 0:00:00]} 46. Bxe4 {[%emt 0:00:00]} 1/2-1/2

[Event "49th Rilton Cup 2019-20"]
[Site "Stockholm"]
[Date "2020.01.05"]
[Round "9.16"]
[White "Ippolito, Dean"]
[Black "Valsecchi, Alessio"]
[Result "1-0"]
[ECO "D30"]
[WhiteElo "2356"]
[BlackElo "2503"]
[Annotator "ChessBase"]
[PlyCount "95"]
[EventDate "2019.12.27"]
[EventType "swiss"]
[EventCountry "SWE"]
[SourceTitle "playchess.com"]
[Source "ChessBase"]
[SourceQuality "1"]
[TimeControl "30/5400+30:1800+30"]

1. d4 {[%emt 0:00:00]} d5 {[%emt 0:00:00]} 2. c4 {[%emt 0:00:00]} e6 {[%emt 0:00:00]} 3. Nf3 {[%emt 0:00:00]} Nf6 {[%emt 0:00:00]} 4. g3 {[%emt 0:00:00]} Bb4+ {[%emt 0:00:00]} 5. Bd2 {[%emt 0:00:00]} Bd6 {[%emt 0:00:03]} 6. Nc3 {[%emt 0:07:48]} c6 {[%emt 0:00:23]} 7. Qc2 {[%emt 0:00:41]} Nbd7 {[%emt 0:00:40]} 8. e4 {[%emt 0:00:53]} Nxe4 {[%emt 0:03:07]} 9. Nxe4 {[%emt 0:00:09]} dxe4 {[%emt 0:00:04]} 10. Qxe4 {[%emt 0:01:18]} c5 {[%emt 0:00:11]} 11. Bc3 {[%emt 0:06:03]} Nf6 {[%emt 0:00:53]} 12. Qc2 {[%emt 0:07:50]} cxd4 {[%emt 0:03:18]} 13. Nxd4 {[%emt 0:00:51]} a6 {[%emt 0:00:19]} 14. Bg2 {[%emt 0:01:32]} O-O {[%emt 0:00:19]} 15. O-O {[%emt 0:00:51]} Qc7 {[%emt 0:00:33]} 16. b3 {[%emt 0:01:54]} Bd7 {[%emt 0:04:20]} 17. a4 {[%emt 0:05:22]} Rac8 {[%emt 0:05:17]} 18. a5 {[%emt 0:02:50]} Rfe8 {[%emt 0:03:48]} 19. Rfe1 {[%emt 0:12:13]} Bc5 {[%emt 0:14:28]} 20. Nf3 {[%emt 0:07:32]} Ng4 {[%emt 0:02:29]} 21. Re2 {[%emt 0:10:44]} Bc6 {[%emt 0:09:15]} 22. Ng5 {[%emt 0:08:00]} f5 {[%emt 0:04:15]} 23. Nxe6 {[%emt 0:01:15]} Rxe6 {[%emt 0:00:27]} 24. Rxe6 {[%emt 0:00:05]} Bxf2+ {[%emt 0:07:09]} 25. Kh1 {[%emt 0:00:16]} Qf7 {[%emt 0:02:35]} 26. Bxc6 {[%emt 0:09:32]} Qh5 {[%emt 0:03:00]} 27. h4 {[%emt 0:00:46]} bxc6 {[%emt 0:10:27]} 28. Qd3 {[%emt 0:01:44]} Bxg3 {[%emt 0:00:23]} 29. Qxg3 {[%emt 0:00:31]} f4 {[%emt 0:00:07]} 30. Qe1 {[%emt 0:03:58]} Ne3 {[%emt 0:00:21]} 31. Rxe3 {[%emt 0:30:36]} fxe3 {[%emt 0:30:07]} 32. Qg3 {[%emt 0:00:05]} g6 {[%emt 0:01:50]} 33. Qxe3 {[%emt 0:04:26]} Qxh4+ {[%emt 0:00:08]} 34. Kg2 {[%emt 0:00:13]} Qg4+ {[%emt 0:00:16]} 35. Qg3 {[%emt 0:00:26]} Qe4+ {[%emt 0:04:02]} 36. Kg1 {[%emt 0:00:07]} Rf8 {[%emt 0:01:34]} 37. Re1 {[%emt 0:00:11]} Qf5 {[%emt 0:00:19]} 38. Bd4 {[%emt 0:01:46]} h5 {[%emt 0:05:42]} 39. Re7 {[%emt 0:02:58]} Rd8 {[%emt 0:00:06]} 40. Bf2 {[%emt 0:02:58]} Rf8 {[%emt 0:04:02]} 41. b4 {[%emt 0:00:00]} Qc2 {[%emt 0:00:00]} 42. c5 {[%emt 0:00:00]} Qb1+ {[%emt 0:00:00]} 43. Re1 {[%emt 0:00:00]} Qc2 {[%emt 0:00:00]} 44. Qe3 {[%emt 0:00:00]} Qb2 {[%emt 0:00:00]} 45. Qe6+ {[%emt 0:00:00]} Kg7 {[%emt 0:00:00]} 46. Qd7+ {[%emt 0:00:00]} Kh6 {[%emt 0:00:00]} 47. Be3+ {[%emt 0:00:00]} g5 {[%emt 0:00:00]} 48. Bd4 {[%emt 0:00:00]} 1-0

[Event "49th Rilton Cup 2019-20"]
[Site "Stockholm"]
[Date "2020.01.05"]
[Round "9.23"]
[White "Percivaldi, Martin"]
[Black "Torngren, Gustav"]
[Result "1-0"]
[ECO "A45"]
[WhiteElo "2403"]
[BlackElo "2255"]
[Annotator "NA"]
[PlyCount "51"]
[EventDate "2019.12.27"]
[EventType "swiss"]
[EventCountry "SWE"]
[SourceTitle "playchess.com"]
[Source "ChessBase"]
[SourceQuality "1"]
[TimeControl "30/5400+30:1800+30"]

1. d4 {[%emt 0:00:00]} Nf6 {[%emt 0:00:00]} 2. Bg5 {[%emt 0:00:30]} d5 {[%emt 0:00:30]} 3. e3 {[%emt 0:00:53]} c5 {[%emt 0:00:30]} 4. c3 {[%emt 0:01:02]} Nc6 {[%emt 0:15:26]} 5. Nd2 {[%emt 0:00:30]} b6 {[%emt 0:07:15]} 6. Bd3 {[%emt 0:01:30]} Bb7 {[%emt 0:00:43]} 7. f4 {[%emt 0:00:51]} g6 {[%emt 0:00:30]} 8. Ngf3 {[%emt 0:00:40]} Bg7 {[%emt 0:01:12]} 9. O-O {[%emt 0:00:44]} Qc7 {[%emt 0:00:48]} 10. Ne5 {[%emt 0:03:04]} Nd7 {[%emt 0:06:25]} 11. Bh4 {[%emt 0:02:04]} Ndxe5 {[%emt 0:16:27]} 12. fxe5 {[%emt 0:01:48]} O-O {[%emt 0:00:30]} 13. Nf3 {[%emt 0:13:24]} f6 {[%emt 0:05:26]} 14. exf6 {[%emt 0:01:00]} exf6 {[%emt 0:00:39]} 15. dxc5 {[%emt 0:00:30]} bxc5 {[%emt 0:01:53]} 16. e4 {[%emt 0:00:34]} dxe4 {[%emt 0:04:36]} 17. Bxe4 {[%emt 0:00:52]} Kh8 {[%emt 0:01:43]} 18. Qa4 {[%emt 0:06:11]} Rfe8 {[%emt 0:03:53]} 19. Rad1 {[%emt 0:07:18]} f5 {[%emt 0:08:57]} 20. Bd5 {[%emt 0:01:14]} Ne5 {[%emt 0:01:07]} 21. Nxe5 {[%emt 0:04:46]} Bxe5 {[%emt 0:00:30]} 22. Bxb7 {[%emt 0:00:30]} Qxb7 {[%emt 0:01:10]} 23. Rd7 {[%emt 0:00:30]} Qb8 {[%emt 0:06:22]} 24. Qc4 {[%emt 0:02:50]} Rg8 {[%emt 0:03:22]} 25. Re1 {[%emt 0:02:45]} Rg7 {[%emt 0:03:26]} 26. Rd8+ {[%emt 0:00:30]} 1-0